{"text_format":"3","workbook":"xlsx","n_sheets":7,"sheets":["Ponedjeljak","Utorak","Srijeda","Četvrtak","Petak","Subota","Nedjelja"],"not_rendered":{"defined_names":24},"read":"whole","date_system":"1900"}

{"sheet":"Ponedjeljak","index":0,"n_rows":10,"n_cols":13,"rows_kept":10,"merged":[[1,1,2,1],[1,2,1,10],[1,11,1,12],[2,2,2,10],[2,11,2,12]]}
[null,"RASPORED SMJENA"]
[null,"PONEDJELJAK","Za tjedan: ",{"$nulls":8},"DATUM"]
[null,null,"Naziv odjela: ",{"$nulls":8},"ODJEL"]
[null,"Ime i prezime zaposlenika","7:00","8:00","9:00","10:00","11:00","12:00","13:00","14:00","15:00","Bolovanje?","UKUPNO"]
[null,"Zorica C","rukovoditelj","rukovoditelj","rukovoditelj","rukovoditelj","rukovoditelj","rukovoditelj","rukovoditelj","rukovoditelj","rukovoditelj",null,{"$f":"IFERROR(COUNTIF(Ponedjeljak[[#This Row],[7:00]:[15:00]],\"*\"),\"\")","v":9}]
[null,"Vjekoslav V",null,"blagajnik","blagajnik","blagajnik","blagajnik",{"$nulls":5},{"$f":"IFERROR(COUNTIF(Ponedjeljak[[#This Row],[7:00]:[15:00]],\"*\"),\"\")","v":4}]
[null,"Jadranko L",null,"recepcionar","recepcionar","recepcionar","recepcionar ","recepcionar","recepcionar","recepcionar",null,null,{"$f":"IFERROR(COUNTIF(Ponedjeljak[[#This Row],[7:00]:[15:00]],\"*\"),\"\")","v":7}]
[null,"Teo P",null,"recepcionar","recepcionar","recepcionar","recepcionar ","recepcionar","recepcionar","recepcionar",null,null,{"$f":"IFERROR(COUNTIF(Ponedjeljak[[#This Row],[7:00]:[15:00]],\"*\"),\"\")","v":7}]
[null,"Tihomir P",{"$nulls":10},{"$f":"IFERROR(COUNTIF(Ponedjeljak[[#This Row],[7:00]:[15:00]],\"*\"),\"\")","v":0}]
[null,"Marica J",{"$nulls":5},"blagajnik","blagajnik","blagajnik","blagajnik",null,{"$f":"IFERROR(COUNTIF(Ponedjeljak[[#This Row],[7:00]:[15:00]],\"*\"),\"\")","v":4}]

{"sheet":"Utorak","index":1,"n_rows":10,"n_cols":13,"rows_kept":10,"merged":[[1,1,2,1],[1,2,1,10],[1,11,1,12],[2,2,2,10],[2,11,2,12]]}
[null,{"$f":"Naslov_RASPORED_SMJENA","v":"RASPORED SMJENA"}]
[null,"UTORAK","Za tjedan: ",{"$nulls":8},{"$f":"DATUM","v":"DATUM"}]
[null,null,"Naziv odjela: ",{"$nulls":8},{"$f":"ODJEL","v":"ODJEL"}]
[null,"Ime i prezime zaposlenika","7:00","8:00","9:00","10:00","11:00","12:00","13:00","14:00","15:00","Bolovanje?","UKUPNO"]
[null,"Zorica C","rukovoditelj","rukovoditelj","rukovoditelj","rukovoditelj","rukovoditelj","rukovoditelj","rukovoditelj","rukovoditelj","rukovoditelj",null,{"$f":"IFERROR(COUNTIF(Utorak[[#This Row],[7:00]:[15:00]],\"*\"),\"\")","v":9}]
[null,"Vjekoslav V",null,"blagajnik","blagajnik","blagajnik","blagajnik",{"$nulls":5},{"$f":"IFERROR(COUNTIF(Utorak[[#This Row],[7:00]:[15:00]],\"*\"),\"\")","v":4}]
[null,"Jadranko L",null,"recepcionar","recepcionar","recepcionar","recepcionar ","recepcionar","recepcionar","recepcionar",null,null,{"$f":"IFERROR(COUNTIF(Utorak[[#This Row],[7:00]:[15:00]],\"*\"),\"\")","v":7}]
[null,"Teo P",null,"recepcionar","recepcionar","recepcionar","recepcionar ","recepcionar","recepcionar","recepcionar",null,null,{"$f":"IFERROR(COUNTIF(Utorak[[#This Row],[7:00]:[15:00]],\"*\"),\"\")","v":7}]
[null,"Tihomir P",{"$nulls":9},"Bolovanje",{"$f":"IFERROR(COUNTIF(Utorak[[#This Row],[7:00]:[15:00]],\"*\"),\"\")","v":0}]
[null,"Marica J",{"$nulls":5},"blagajnik","blagajnik","blagajnik","blagajnik",null,{"$f":"IFERROR(COUNTIF(Utorak[[#This Row],[7:00]:[15:00]],\"*\"),\"\")","v":4}]

{"sheet":"Srijeda","index":2,"n_rows":10,"n_cols":13,"rows_kept":10,"merged":[[1,1,2,1],[1,2,1,10],[1,11,1,12],[2,2,2,10],[2,11,2,12]]}
[null,{"$f":"Naslov_RASPORED_SMJENA","v":"RASPORED SMJENA"}]
[null,"SRIJEDA","Za tjedan: ",{"$nulls":8},{"$f":"DATUM","v":"DATUM"}]
[null,null,"Naziv odjela: ",{"$nulls":8},{"$f":"ODJEL","v":"ODJEL"}]
[null,"Ime i prezime zaposlenika","7:00","8:00","9:00","10:00","11:00","12:00","13:00","14:00","15:00","Bolovanje?","UKUPNO"]
[null,"Zorica C","rukovoditelj","rukovoditelj","rukovoditelj","rukovoditelj","rukovoditelj","rukovoditelj","rukovoditelj","rukovoditelj","rukovoditelj",null,{"$f":"IFERROR(COUNTIF(Srijeda[[#This Row],[7:00]:[15:00]],\"*\"),\"\")","v":9}]
[null,"Vjekoslav V",null,"blagajnik","blagajnik","blagajnik","blagajnik",{"$nulls":5},{"$f":"IFERROR(COUNTIF(Srijeda[[#This Row],[7:00]:[15:00]],\"*\"),\"\")","v":4}]
[null,"Jadranko L",null,"recepcionar","recepcionar","recepcionar","recepcionar ","recepcionar","recepcionar","recepcionar",null,null,{"$f":"IFERROR(COUNTIF(Srijeda[[#This Row],[7:00]:[15:00]],\"*\"),\"\")","v":7}]
[null,"Teo P",null,"recepcionar","recepcionar","recepcionar","recepcionar ","recepcionar","recepcionar","recepcionar",null,null,{"$f":"IFERROR(COUNTIF(Srijeda[[#This Row],[7:00]:[15:00]],\"*\"),\"\")","v":7}]
[null,"Tihomir P",{"$nulls":9},"Bolovanje",{"$f":"IFERROR(COUNTIF(Srijeda[[#This Row],[7:00]:[15:00]],\"*\"),\"\")","v":0}]
[null,"Marica J",{"$nulls":5},"blagajnik","blagajnik","blagajnik","blagajnik",null,{"$f":"IFERROR(COUNTIF(Srijeda[[#This Row],[7:00]:[15:00]],\"*\"),\"\")","v":4}]

{"sheet":"Četvrtak","index":3,"n_rows":10,"n_cols":13,"rows_kept":10,"merged":[[1,1,2,1],[1,2,1,10],[1,11,1,12],[2,2,2,10],[2,11,2,12]]}
[null,{"$f":"Naslov_RASPORED_SMJENA","v":"RASPORED SMJENA"}]
[null,"ČETVRTAK","Za tjedan: ",{"$nulls":8},{"$f":"DATUM","v":"DATUM"}]
[null,null,"Naziv odjela: ",{"$nulls":8},{"$f":"ODJEL","v":"ODJEL"}]
[null,"Ime i prezime zaposlenika","7:00","8:00","9:00","10:00","11:00","12:00","13:00","14:00","15:00","Bolovanje?","UKUPNO"]
[null,"Zorica C","rukovoditelj","rukovoditelj","rukovoditelj","rukovoditelj","rukovoditelj","rukovoditelj","rukovoditelj","rukovoditelj","rukovoditelj",null,{"$f":"IFERROR(COUNTIF(Četvrtak[[#This Row],[7:00]:[15:00]],\"*\"),\"\")","v":9}]
[null,"Vjekoslav V",null,"blagajnik","blagajnik","blagajnik","blagajnik",{"$nulls":5},{"$f":"IFERROR(COUNTIF(Četvrtak[[#This Row],[7:00]:[15:00]],\"*\"),\"\")","v":4}]
[null,"Jadranko L",null,"recepcionar","recepcionar","recepcionar","recepcionar ","recepcionar","recepcionar","recepcionar",null,null,{"$f":"IFERROR(COUNTIF(Četvrtak[[#This Row],[7:00]:[15:00]],\"*\"),\"\")","v":7}]
[null,"Teo P",null,"recepcionar","recepcionar","recepcionar","recepcionar ","recepcionar","recepcionar","recepcionar",null,null,{"$f":"IFERROR(COUNTIF(Četvrtak[[#This Row],[7:00]:[15:00]],\"*\"),\"\")","v":7}]
[null,"Tihomir P",{"$nulls":9},"Bolovanje",{"$f":"IFERROR(COUNTIF(Četvrtak[[#This Row],[7:00]:[15:00]],\"*\"),\"\")","v":0}]
[null,"Marica J",{"$nulls":5},"blagajnik","blagajnik","blagajnik","blagajnik",null,{"$f":"IFERROR(COUNTIF(Četvrtak[[#This Row],[7:00]:[15:00]],\"*\"),\"\")","v":4}]

{"sheet":"Petak","index":4,"n_rows":10,"n_cols":13,"rows_kept":10,"merged":[[1,1,2,1],[1,2,1,10],[1,11,1,12],[2,2,2,10],[2,11,2,12]]}
[null,{"$f":"Naslov_RASPORED_SMJENA","v":"RASPORED SMJENA"}]
[null,"PETAK","Za tjedan: ",{"$nulls":8},{"$f":"DATUM","v":"DATUM"}]
[null,null,"Naziv odjela: ",{"$nulls":8},{"$f":"ODJEL","v":"ODJEL"}]
[null,"Ime i prezime zaposlenika","7:00","8:00","9:00","10:00","11:00","12:00","13:00","14:00","15:00","Bolovanje?","UKUPNO"]
[null,"Zorica C","rukovoditelj","rukovoditelj","rukovoditelj","rukovoditelj","rukovoditelj","rukovoditelj","rukovoditelj","rukovoditelj","rukovoditelj",null,{"$f":"IFERROR(COUNTIF(Petak[[#This Row],[7:00]:[15:00]],\"*\"),\"\")","v":9}]
[null,"Vjekoslav V",null,"blagajnik","blagajnik","blagajnik","blagajnik",{"$nulls":5},{"$f":"IFERROR(COUNTIF(Petak[[#This Row],[7:00]:[15:00]],\"*\"),\"\")","v":4}]
[null,"Jadranko L",null,"recepcionar","recepcionar","recepcionar","recepcionar ","recepcionar","recepcionar","recepcionar",null,null,{"$f":"IFERROR(COUNTIF(Petak[[#This Row],[7:00]:[15:00]],\"*\"),\"\")","v":7}]
[null,"Teo P",null,"recepcionar","recepcionar","recepcionar","recepcionar ","recepcionar","recepcionar","recepcionar",null,null,{"$f":"IFERROR(COUNTIF(Petak[[#This Row],[7:00]:[15:00]],\"*\"),\"\")","v":7}]
[null,"Tihomir P",{"$nulls":9},"Bolovanje",{"$f":"IFERROR(COUNTIF(Petak[[#This Row],[7:00]:[15:00]],\"*\"),\"\")","v":0}]
[null,"Marica J",{"$nulls":5},"blagajnik","blagajnik","blagajnik","blagajnik",null,{"$f":"IFERROR(COUNTIF(Petak[[#This Row],[7:00]:[15:00]],\"*\"),\"\")","v":4}]

{"sheet":"Subota","index":5,"n_rows":10,"n_cols":13,"rows_kept":10,"merged":[[1,1,2,1],[1,2,1,10],[1,11,1,12],[2,2,2,10],[2,11,2,12]]}
[null,{"$f":"Naslov_RASPORED_SMJENA","v":"RASPORED SMJENA"}]
[null,"SUBOTA","Za tjedan: ",{"$nulls":8},{"$f":"DATUM","v":"DATUM"}]
[null,null,"Naziv odjela: ",{"$nulls":8},{"$f":"ODJEL","v":"ODJEL"}]
[null,"Ime i prezime zaposlenika","7:00","8:00","9:00","10:00","11:00","12:00","13:00","14:00","15:00","Bolovanje?","UKUPNO"]
[null,"Zorica C","rukovoditelj","rukovoditelj","rukovoditelj","rukovoditelj","rukovoditelj","rukovoditelj","rukovoditelj","rukovoditelj","rukovoditelj",null,{"$f":"IFERROR(COUNTIF(Subota[[#This Row],[7:00]:[15:00]],\"*\"),\"\")","v":9}]
[null,"Vjekoslav V",null,"blagajnik","blagajnik","blagajnik","blagajnik",{"$nulls":5},{"$f":"IFERROR(COUNTIF(Subota[[#This Row],[7:00]:[15:00]],\"*\"),\"\")","v":4}]
[null,"Jadranko L",null,"recepcionar","recepcionar","recepcionar","recepcionar ","recepcionar","recepcionar","recepcionar",null,null,{"$f":"IFERROR(COUNTIF(Subota[[#This Row],[7:00]:[15:00]],\"*\"),\"\")","v":7}]
[null,"Teo P",null,"recepcionar","recepcionar","recepcionar","recepcionar ","recepcionar","recepcionar","recepcionar",null,null,{"$f":"IFERROR(COUNTIF(Subota[[#This Row],[7:00]:[15:00]],\"*\"),\"\")","v":7}]
[null,"Tihomir P",{"$nulls":9},"Bolovanje",{"$f":"IFERROR(COUNTIF(Subota[[#This Row],[7:00]:[15:00]],\"*\"),\"\")","v":0}]
[null,"Marica J",{"$nulls":5},"blagajnik","blagajnik","blagajnik","blagajnik",null,{"$f":"IFERROR(COUNTIF(Subota[[#This Row],[7:00]:[15:00]],\"*\"),\"\")","v":4}]

{"sheet":"Nedjelja","index":6,"n_rows":10,"n_cols":13,"rows_kept":10,"merged":[[1,1,2,1],[1,2,1,10],[1,11,1,12],[2,2,2,10],[2,11,2,12]]}
[null,{"$f":"Naslov_RASPORED_SMJENA","v":"RASPORED SMJENA"}]
[null,"NEDJELJA","Za tjedan: ",{"$nulls":8},{"$f":"DATUM","v":"DATUM"}]
[null,null,"Naziv odjela: ",{"$nulls":8},{"$f":"ODJEL","v":"ODJEL"}]
[null,"Ime i prezime zaposlenika","7:00","8:00","9:00","10:00","11:00","12:00","13:00","14:00","15:00","Bolovanje?","UKUPNO"]
[null,"Zorica C","rukovoditelj","rukovoditelj","rukovoditelj","rukovoditelj","rukovoditelj","rukovoditelj","rukovoditelj","rukovoditelj","rukovoditelj",null,{"$f":"IFERROR(COUNTIF(Nedjelja[[#This Row],[7:00]:[15:00]],\"*\"),\"\")","v":9}]
[null,"Vjekoslav V",null,"blagajnik","blagajnik","blagajnik","blagajnik",{"$nulls":5},{"$f":"IFERROR(COUNTIF(Nedjelja[[#This Row],[7:00]:[15:00]],\"*\"),\"\")","v":4}]
[null,"Jadranko L",null,"recepcionar","recepcionar","recepcionar","recepcionar ","recepcionar","recepcionar","recepcionar",null,null,{"$f":"IFERROR(COUNTIF(Nedjelja[[#This Row],[7:00]:[15:00]],\"*\"),\"\")","v":7}]
[null,"Teo P",null,"recepcionar","recepcionar","recepcionar","recepcionar ","recepcionar","recepcionar","recepcionar",null,null,{"$f":"IFERROR(COUNTIF(Nedjelja[[#This Row],[7:00]:[15:00]],\"*\"),\"\")","v":7}]
[null,"Tihomir P",{"$nulls":9},"Bolovanje",{"$f":"IFERROR(COUNTIF(Nedjelja[[#This Row],[7:00]:[15:00]],\"*\"),\"\")","v":0}]
[null,"Marica J",{"$nulls":5},"blagajnik","blagajnik","blagajnik","blagajnik",null,{"$f":"IFERROR(COUNTIF(Nedjelja[[#This Row],[7:00]:[15:00]],\"*\"),\"\")","v":4}]